[Event "GER-ch Youth-U12 2024"]
[Site "Willingen"]
[Date "2024.05.20"]
[Round "3"]
[White "Lanert, Theodor"]
[Black "Chua, Daniel James"]
[Result "0-1"]
[ECO "B77"]
[WhiteElo "1742"]
[BlackElo "1751"]
[Annotator "NA"]
[PlyCount "78"]
[EventDate "2022.06.05"]
[EventType "swiss"]
[EventRounds "9"]
[EventCountry "GER"]
[SourceTitle "playchess.com"]
[Source "ChessBase"]
[SourceQuality "1"]
[TimeControl "40/4500+30:900+30"]

1. e4 {[%emt 0:00:00]} c5 {[%emt 0:00:00]} 2. Nf3 {[%emt 0:00:00]} d6 {[%emt 0:00:00]} 3. d4 {[%emt 0:00:00]} cxd4 {[%emt 0:00:00]} 4. Nxd4 {[%emt 0:00:00]} Nf6 {[%emt 0:00:00]} 5. Nc3 {[%emt 0:00:00]} g6 {[%emt 0:00:00]} 6. Be3 {[%emt 0:00:00]} Bg7 {[%emt 0:00:00]} 7. Bc4 {[%emt 0:00:00]} O-O {[%emt 0:00:00]} 8. Bb3 {[%emt 0:00:00]} Nc6 {[%emt 0:00:00]} 9. f3 {[%emt 0:00:00]} Bd7 {[%emt 0:00:00]} 10. Qd2 {[%emt 0:00:00]} Rc8 {[%emt 0:00:00]} 11. g4 {[%emt 0:00:00]} Nxd4 {[%emt 0:00:00]} 12. Bxd4 {[%emt 0:00:00]} Bc6 {[%emt 0:00:00]} 13. h4 {[%emt 0:00:00]} b5 {[%emt 0:00:57]} 14. h5 {[%emt 0:15:53]} b4 {[%emt 0:04:09]} 15. Nd5 {[%emt 0:00:24]} e5 {[%emt 0:02:41]} 16. Be3 {[%emt 0:21:13]} Bxd5 {[%emt 0:02:04]} 17. exd5 {[%emt 0:01:25]} e4 {[%emt 0:01:27]} 18. O-O-O {[%emt 0:10:16]} exf3 {[%emt 0:03:28]} 19. Qxb4 {[%emt 0:05:49]} Re8 {[%emt 0:03:23]} 20. Bg5 {[%emt 0:05:26]} Re5 {[%emt 0:02:13]} 21. Qf4 {[%emt 0:05:05]} h6 {[%emt 0:12:13]} 22. Bxf6 {[%emt 0:00:39]} Qxf6 {[%emt 0:00:51]} 23. Qxf6 {[%emt 0:00:00]} Bxf6 {[%emt 0:00:01]} 24. Rdf1 {[%emt 0:00:45]} Bg5+ {[%emt 0:00:33]} 25. Kd1 {[%emt 0:00:41]} gxh5 {[%emt 0:00:45]} 26. gxh5 {[%emt 0:00:08]} Re3 {[%emt 0:00:49]} 27. Rh3 {[%emt 0:00:09]} f2 {[%emt 0:00:13]} 28. Rh2 {[%emt 0:00:59]} Rce8 {[%emt 0:00:54]} 29. Rhxf2 {[%emt 0:00:37]} f6 {[%emt 0:00:39]} 30. Bc4 {[%emt 0:05:58]} R8e4 {[%emt 0:01:39]} 31. Bd3 {[%emt 0:00:36]} Rh4 {[%emt 0:01:01]} 32. Re2 {[%emt 0:00:56]} Rxe2 {[%emt 0:00:24]} 33. Bxe2 {[%emt 0:00:06]} Rd4+ {[%emt 0:00:09]} 34. Ke1 {[%emt 0:00:12]} Bh4+ {[%emt 0:00:10]} 35. Rf2 {[%emt 0:00:14]} Rf4 {[%emt 0:00:09]} 36. b4 {[%emt 0:01:36]} Bxf2+ {[%emt 0:00:23]} 37. Kd2 {[%emt 0:00:25]} Rxb4 {[%emt 0:00:07]} 38. Kd3 {[%emt 0:00:18]} Rd4+ {[%emt 0:00:09]} 39. Kc3 {[%emt 0:00:11]} Kg7 {[%emt 0:00:20]} 0-1

[Event "GER-ch Youth-U12 2024"]
[Site "Willingen"]
[Date "2024.05.20"]
[Round "3"]
[White "Draude, Theo"]
[Black "Fass, Ben"]
[Result "1-0"]
[ECO "C45"]
[WhiteElo "1731"]
[BlackElo "1027"]
[Annotator "NA RC"]
[PlyCount "31"]
[EventDate "2022.06.05"]
[EventType "swiss"]
[EventRounds "9"]
[EventCountry "GER"]
[SourceTitle "playchess.com"]
[Source "ChessBase"]
[SourceQuality "1"]
[TimeControl "40/4500+30:900+30"]

1. e4 {[%emt 0:00:00]} e5 {[%emt 0:00:00]} 2. Nf3 {[%emt 0:00:00]} Nc6 {[%emt 0:00:00]} 3. d4 {[%emt 0:00:00]} exd4 {[%emt 0:00:00]} 4. Nxd4 {[%emt 0:00:00]} Bc5 {[%emt 0:00:00]} 5. Nb3 {[%emt 0:00:00]} Bb6 {[%emt 0:00:00]} 6. Qe2 {[%emt 0:00:00]} Bd4 {[%emt 0:00:00]} 7. Nc3 {[%emt 0:00:00]} b6 {[%emt 0:00:00]} 8. Nxd4 {[%emt 0:00:00]} Nxd4 {[%emt 0:00:00]} 9. Qd3 {[%emt 0:00:00]} Qf6 {[%emt 0:00:00]} 10. Be3 {[%emt 0:00:00]} c5 {[%emt 0:00:00]} 11. Nd5 {[%emt 0:00:00]} Qc6 {[%emt 0:00:00]} 12. Bxd4 {[%emt 0:00:00]} cxd4 {[%emt 0:00:00]} 13. Qxd4 {[%emt 0:00:00]} Qxc2 {[%emt 0:00:00]} 14. Bd3 {[%emt 0:00:00]} Qc6 {[%emt 0:00:00]} 15. Qxg7 {[%emt 0:00:00]} f6 {[%emt 0:00:00]} 16. Qxh8 {[%emt 0:00:00]} 1-0

[Event "GER-ch Youth-U12 2024"]
[Site "Willingen"]
[Date "2024.05.20"]
[Round "3"]
[White "Vinogradov, Ilia"]
[Black "Prashanthakumar, Arnesh"]
[Result "1-0"]
[ECO "C50"]
[WhiteElo "1723"]
[BlackElo "1634"]
[Annotator "NA"]
[PlyCount "103"]
[EventDate "2022.06.05"]
[EventType "swiss"]
[EventRounds "9"]
[EventCountry "GER"]
[SourceTitle "playchess.com"]
[Source "ChessBase"]
[SourceQuality "1"]
[TimeControl "40/4500+30:900+30"]

1. e4 {[%emt 0:00:00]} e5 {[%emt 0:00:00]} 2. Nf3 {[%emt 0:00:00]} Nc6 {[%emt 0:00:00]} 3. Bc4 {[%emt 0:00:00]} Bc5 {[%emt 0:00:00]} 4. O-O {[%emt 0:00:00]} Nf6 {[%emt 0:00:00]} 5. d4 {[%emt 0:00:00]} Nxd4 {[%emt 0:00:00]} 6. Nxe5 {[%emt 0:00:00]} O-O {[%emt 0:00:00]} 7. Be3 {[%emt 0:00:00]} Ne6 {[%emt 0:00:00]} 8. Bxe6 {[%emt 0:00:00]} Bxe3 {[%emt 0:00:00]} 9. Bxf7+ {[%emt 0:00:00]} Kh8 {[%emt 0:00:00]} 10. fxe3 {[%emt 0:00:00]} d6 {[%emt 0:00:00]} 11. Ng6+ {[%emt 0:00:00]} hxg6 {[%emt 0:00:00]} 12. Bxg6 {[%emt 0:00:00]} Ng4 {[%emt 0:00:18]} 13. Rf3 {[%emt 0:08:21]} Rxf3 {[%emt 0:05:43]} 14. Qxf3 {[%emt 0:01:15]} Bd7 {[%emt 0:02:12]} 15. Bf5 {[%emt 0:03:30]} Bxf5 {[%emt 0:02:25]} 16. exf5 {[%emt 0:20:23]} Qg5 {[%emt 0:05:41]} 17. Qf4 {[%emt 0:01:19]} Qh5 {[%emt 0:03:48]} 18. Nd2 {[%emt 0:06:16]} Rf8 {[%emt 0:07:31]} 19. Rf1 {[%emt 0:12:02]} Rxf5 {[%emt 0:03:29]} 20. Qg3 {[%emt 0:02:50]} Rxf1+ {[%emt 0:02:47]} 21. Nxf1 {[%emt 0:00:13]} Qf5 {[%emt 0:01:56]} 22. Qh4+ {[%emt 0:03:13]} Kg8 {[%emt 0:03:51]} 23. h3 {[%emt 0:01:03]} Nf6 {[%emt 0:01:28]} 24. Qc4+ {[%emt 0:01:10]} Kh7 {[%emt 0:02:33]} 25. Qxc7 {[%emt 0:02:59]} Ne4 {[%emt 0:02:56]} 26. Qxb7 {[%emt 0:01:25]} Qf2+ {[%emt 0:01:02]} 27. Kh2 {[%emt 0:00:06]} Qxc2 {[%emt 0:00:47]} 28. b4 {[%emt 0:02:34]} Qd3 {[%emt 0:02:33]} 29. a4 {[%emt 0:01:32]} d5 {[%emt 0:04:17]} 30. Qf7 {[%emt 0:01:04]} Nf6 {[%emt 0:02:24]} 31. Kg1 {[%emt 0:00:13]} a6 {[%emt 0:01:53]} 32. Qa7 {[%emt 0:03:00]} Ne4 {[%emt 0:03:27]} 33. Qd4 {[%emt 0:05:39]} Qb3 {[%emt 0:01:12]} 34. a5 {[%emt 0:00:49]} Qa2 {[%emt 0:01:41]} 35. Qd3 {[%emt 0:01:05]} Qc4 {[%emt 0:02:47]} 36. Qb1 {[%emt 0:02:00]} Kh8 {[%emt 0:01:12]} 37. b5 {[%emt 0:03:52]} Nc3 {[%emt 0:00:49]} 38. Qf5 {[%emt 0:02:56]} Nxb5 {[%emt 0:01:47]} 39. Qf8+ {[%emt 0:01:03]} Kh7 {[%emt 0:00:12]} 40. Qf5+ {[%emt 0:00:12]} Kh8 {[%emt 0:00:15]} 41. Qg4 {[%emt 0:00:00]} Qc7 {[%emt 0:00:00]} 42. Qh5+ {[%emt 0:00:00]} Kg8 {[%emt 0:00:00]} 43. Qxd5+ {[%emt 0:00:00]} Kh8 {[%emt 0:00:00]} 44. Qa8+ {[%emt 0:00:00]} Kh7 {[%emt 0:00:00]} 45. Qxa6 {[%emt 0:00:00]} Nc3 {[%emt 0:00:00]} 46. Qd3+ {[%emt 0:00:00]} Kh8 {[%emt 0:00:00]} 47. a6 {[%emt 0:00:00]} Na4 {[%emt 0:00:00]} 48. Qa3 {[%emt 0:02:43]} Qd7 {[%emt 0:00:00]} 49. Kh2 {[%emt 0:01:41]} Qc7+ {[%emt 0:00:00]} 50. Ng3 {[%emt 0:00:21]} Qd7 {[%emt 0:00:00]} 51. Qf8+ {[%emt 0:00:35]} Kh7 {[%emt 0:00:00]} 52. Qf5+ {[%emt 0:00:06]} 1-0

[Event "GER-ch Youth-U12 2024"]
[Site "Willingen"]
[Date "2024.05.20"]
[Round "3"]
[White "Hepp, Daniel"]
[Black "Kaza, Charith"]
[Result "1-0"]
[ECO "D58"]
[WhiteElo "1721"]
[BlackElo "1503"]
[Annotator "NA"]
[PlyCount "123"]
[EventDate "2022.06.05"]
[EventType "swiss"]
[EventRounds "9"]
[EventCountry "GER"]
[SourceTitle "playchess.com"]
[Source "ChessBase"]
[SourceQuality "1"]
[TimeControl "40/4500+30:900+30"]

1. d4 {[%emt 0:00:00]} d5 {[%emt 0:00:00]} 2. c4 {[%emt 0:00:00]} e6 {[%emt 0:00:00]} 3. Nc3 {[%emt 0:00:00]} Nf6 {[%emt 0:00:00]} 4. Nf3 {[%emt 0:00:00]} Be7 {[%emt 0:00:00]} 5. Bg5 {[%emt 0:00:00]} h6 {[%emt 0:00:00]} 6. Bh4 {[%emt 0:00:00]} O-O {[%emt 0:00:00]} 7. e3 {[%emt 0:00:00]} b6 {[%emt 0:00:00]} 8. Be2 {[%emt 0:00:00]} Bb7 {[%emt 0:00:00]} 9. O-O {[%emt 0:00:00]} Nbd7 {[%emt 0:00:00]} 10. Rc1 {[%emt 0:00:00]} c6 {[%emt 0:00:00]} 11. Bg3 {[%emt 0:00:00]} Nh5 {[%emt 0:00:00]} 12. cxd5 {[%emt 0:00:00]} Nxg3 {[%emt 0:00:00]} 13. hxg3 {[%emt 0:00:00]} exd5 {[%emt 0:00:00]} 14. Bd3 {[%emt 0:00:00]} Rc8 {[%emt 0:00:00]} 15. a3 {[%emt 0:04:55]} f5 {[%emt 0:00:12]} 16. Qc2 {[%emt 0:01:38]} g6 {[%emt 0:02:40]} 17. Qb3 {[%emt 0:11:52]} Kg7 {[%emt 0:06:40]} 18. Ne2 {[%emt 0:02:40]} Bg5 {[%emt 0:02:15]} 19. Nf4 {[%emt 0:15:52]} Re8 {[%emt 0:06:24]} 20. Rfe1 {[%emt 0:04:56]} Qf6 {[%emt 0:03:51]} 21. Qa4 {[%emt 0:03:29]} a5 {[%emt 0:03:20]} 22. Nxd5 {[%emt 0:02:00]} Qd6 {[%emt 0:05:52]} 23. Nf4 {[%emt 0:02:58]} Bxf4 {[%emt 0:04:12]} 24. gxf4 {[%emt 0:01:26]} c5 {[%emt 0:01:12]} 25. Bb5 {[%emt 0:01:33]} Red8 {[%emt 0:01:19]} 26. Bxd7 {[%emt 0:00:59]} Rxd7 {[%emt 0:00:23]} 27. Ne5 {[%emt 0:01:16]} Rdd8 {[%emt 0:00:20]} 28. Qb3 {[%emt 0:02:51]} c4 {[%emt 0:02:30]} 29. Nxc4 {[%emt 0:07:48]} Qd5 {[%emt 0:00:24]} 30. f3 {[%emt 0:00:12]} Rd6 {[%emt 0:09:55]} 31. Nd2 {[%emt 0:02:09]} Qxb3 {[%emt 0:02:39]} 32. Nxb3 {[%emt 0:00:16]} Rdc6 {[%emt 0:00:06]} 33. Rxc6 {[%emt 0:00:21]} Rxc6 {[%emt 0:00:12]} 34. Rc1 {[%emt 0:00:16]} Rxc1+ {[%emt 0:00:05]} 35. Nxc1 {[%emt 0:00:01]} Ba6 {[%emt 0:00:18]} 36. Kf2 {[%emt 0:00:17]} Kf6 {[%emt 0:00:07]} 37. Ne2 {[%emt 0:00:42]} Bxe2 {[%emt 0:00:11]} 38. Kxe2 {[%emt 0:00:04]} Ke6 {[%emt 0:00:05]} 39. Kd3 {[%emt 0:00:27]} Kd5 {[%emt 0:00:26]} 40. b3 {[%emt 0:00:35]} b5 {[%emt 0:00:07]} 41. a4 {[%emt 0:16:20]} bxa4 {[%emt 0:16:23]} 42. bxa4 {[%emt 0:00:04]} h5 {[%emt 0:00:10]} 43. e4+ {[%emt 0:00:05]} Kd6 {[%emt 0:00:07]} 44. Kc4 {[%emt 0:00:19]} Kc6 {[%emt 0:00:11]} 45. d5+ {[%emt 0:00:06]} Kb6 {[%emt 0:00:08]} 46. e5 {[%emt 0:00:09]} h4 {[%emt 0:00:15]} 47. e6 {[%emt 0:00:04]} Kc7 {[%emt 0:00:04]} 48. Kc5 {[%emt 0:00:03]} Kd8 {[%emt 0:00:08]} 49. d6 {[%emt 0:00:06]} Ke8 {[%emt 0:00:04]} 50. d7+ {[%emt 0:00:09]} Ke7 {[%emt 0:00:14]} 51. Kc6 {[%emt 0:00:06]} Kxe6 {[%emt 0:00:49]} 52. d8=Q {[%emt 0:00:10]} h3 {[%emt 0:00:17]} 53. Qd5+ {[%emt 0:00:05]} Kf6 {[%emt 0:00:12]} 54. Qd6+ {[%emt 0:00:17]} Kg7 {[%emt 0:00:05]} 55. Qe7+ {[%emt 0:00:27]} Kh6 {[%emt 0:00:12]} 56. Qf6 {[%emt 0:00:07]} Kh7 {[%emt 0:00:29]} 57. gxh3 {[%emt 0:00:05]} Kg8 {[%emt 0:00:11]} 58. Qe7 {[%emt 0:00:17]} Kh8 {[%emt 0:00:09]} 59. Kd6 {[%emt 0:00:05]} Kg8 {[%emt 0:00:06]} 60. Ke6 {[%emt 0:00:13]} Kh8 {[%emt 0:00:07]} 61. Kf6 {[%emt 0:00:37]} Kg8 {[%emt 0:00:02]} 62. Qg7# {[%emt 0:00:00]} 1-0

[Event "GER-ch Youth-U12 2024"]
[Site "Willingen"]
[Date "2024.05.20"]
[Round "3"]
[White "Sun, Christopher"]
[Black "Schulz, Robin"]
[Result "0-1"]
[ECO "B13"]
[WhiteElo "1714"]
[BlackElo "1730"]
[Annotator "NA"]
[PlyCount "114"]
[EventDate "2022.06.05"]
[EventType "swiss"]
[EventRounds "9"]
[EventCountry "GER"]
[SourceTitle "playchess.com"]
[Source "ChessBase"]
[SourceQuality "1"]
[TimeControl "40/4500+30:900+30"]

1. e4 {[%emt 0:00:00]} c6 {[%emt 0:00:00]} 2. d4 {[%emt 0:00:00]} d5 {[%emt 0:00:00]} 3. exd5 {[%emt 0:00:00]} cxd5 {[%emt 0:00:00]} 4. Bd3 {[%emt 0:00:00]} Nc6 {[%emt 0:00:00]} 5. c3 {[%emt 0:00:00]} Nf6 {[%emt 0:00:00]} 6. Ne2 {[%emt 0:00:00]} Bg4 {[%emt 0:00:00]} 7. Bf4 {[%emt 0:00:00]} e6 {[%emt 0:00:00]} 8. h3 {[%emt 0:00:00]} Bh5 {[%emt 0:00:00]} 9. O-O {[%emt 0:00:00]} Bd6 {[%emt 0:00:00]} 10. Bxd6 {[%emt 0:00:00]} Qxd6 {[%emt 0:00:00]} 11. Nd2 {[%emt 0:00:00]} O-O {[%emt 0:00:00]} 12. g4 {[%emt 0:00:00]} Bg6 {[%emt 0:00:00]} 13. Bxg6 {[%emt 0:00:00]} fxg6 {[%emt 0:00:00]} 14. Ng3 {[%emt 0:00:00]} Nd7 {[%emt 0:00:00]} 15. Nf3 {[%emt 0:02:36]} Qf4 {[%emt 0:00:00]} 16. Kg2 {[%emt 0:00:52]} Rf7 {[%emt 0:00:00]} 17. Ne1 {[%emt 0:13:46]} g5 {[%emt 0:06:44]} 18. Nd3 {[%emt 0:02:28]} Qd6 {[%emt 0:00:10]} 19. Qe2 {[%emt 0:04:03]} Nf8 {[%emt 0:06:48]} 20. Rae1 {[%emt 0:05:49]} Re8 {[%emt 0:02:35]} 21. Ne5 {[%emt 0:02:34]} Nxe5 {[%emt 0:01:40]} 22. Qxe5 {[%emt 0:01:42]} Qxe5 {[%emt 0:02:36]} 23. Rxe5 {[%emt 0:00:41]} h6 {[%emt 0:00:26]} 24. Ne2 {[%emt 0:08:13]} Ng6 {[%emt 0:02:30]} 25. Re3 {[%emt 0:00:57]} Rf6 {[%emt 0:02:59]} 26. f3 {[%emt 0:09:24]} Kf7 {[%emt 0:01:13]} 27. Ng3 {[%emt 0:04:24]} Nf4+ {[%emt 0:01:52]} 28. Kh2 {[%emt 0:01:08]} Rc8 {[%emt 0:07:16]} 29. Rfe1 {[%emt 0:04:10]} Rc6 {[%emt 0:00:24]} 30. Ne2 {[%emt 0:06:31]} Ng6 {[%emt 0:06:23]} 31. Nc1 {[%emt 0:01:24]} b6 {[%emt 0:01:39]} 32. Nd3 {[%emt 0:01:00]} a5 {[%emt 0:00:25]} 33. Kg3 {[%emt 0:02:01]} Ke7 {[%emt 0:00:34]} 34. Ne5 {[%emt 0:01:37]} Nxe5 {[%emt 0:01:53]} 35. Rxe5 {[%emt 0:00:14]} Kd6 {[%emt 0:01:05]} 36. R5e3 {[%emt 0:03:15]} b5 {[%emt 0:01:54]} 37. a3 {[%emt 0:01:00]} Rb6 {[%emt 0:05:26]} 38. R1e2 {[%emt 0:03:13]} g6 {[%emt 0:02:40]} 39. Kf2 {[%emt 0:02:33]} b4 {[%emt 0:03:26]} 40. cxb4 {[%emt 0:00:39]} axb4 {[%emt 0:00:01]} 41. Rb3 {[%emt 0:16:16]} Rf7 {[%emt 0:17:35]} 42. Rxb4 {[%emt 0:01:31]} Rxb4 {[%emt 0:02:06]} 43. axb4 {[%emt 0:00:13]} Rb7 {[%emt 0:00:05]} 44. Rd2 {[%emt 0:00:00]} Rxb4 {[%emt 0:00:00]} 45. Kg3 {[%emt 0:00:00]} Rb3 {[%emt 0:00:00]} 46. Kf2 {[%emt 0:00:00]} e5 {[%emt 0:00:00]} 47. dxe5+ {[%emt 0:00:00]} Kxe5 {[%emt 0:00:00]} 48. Kg3 {[%emt 0:00:00]} d4 {[%emt 0:00:00]} 49. Kf2 {[%emt 0:00:00]} Kd5 {[%emt 0:00:00]} 50. Ke2 {[%emt 0:07:12]} Kc4 {[%emt 0:00:00]} 51. Rc2+ {[%emt 0:00:56]} Kd5 {[%emt 0:00:00]} 52. Rd2 {[%emt 0:03:10]} Re3+ {[%emt 0:00:00]} 53. Kf2 {[%emt 0:00:17]} Kc4 {[%emt 0:00:00]} 54. Re2 {[%emt 0:00:39]} Rb3 {[%emt 0:00:00]} 55. Rd2 {[%emt 0:00:31]} Rd3 {[%emt 0:00:00]} 56. Rxd3 {[%emt 0:00:38]} Kxd3 {[%emt 0:00:00]} 57. Ke1 {[%emt 0:00:11]} Kc2 {[%emt 0:00:00]} 0-1

[Event "GER-ch Youth-U12 2024"]
[Site "Willingen"]
[Date "2024.05.20"]
[Round "3"]
[White "Hellriegel, Hannes"]
[Black "Junge, Mattheo Gabriel"]
[Result "0-1"]
[ECO "B15"]
[WhiteElo "1701"]
[BlackElo "1817"]
[Annotator "NA"]
[PlyCount "114"]
[EventDate "2022.06.05"]
[EventType "swiss"]
[EventRounds "9"]
[EventCountry "GER"]
[SourceTitle "playchess.com"]
[Source "ChessBase"]
[SourceQuality "1"]
[TimeControl "40/4500+30:900+30"]

1. e4 {[%emt 0:00:00]} c6 {[%emt 0:00:00]} 2. d4 {[%emt 0:00:00]} d5 {[%emt 0:00:00]} 3. Nc3 {[%emt 0:00:00]} dxe4 {[%emt 0:00:00]} 4. Nxe4 {[%emt 0:00:00]} Nf6 {[%emt 0:00:00]} 5. Nxf6+ {[%emt 0:00:00]} exf6 {[%emt 0:00:00]} 6. c3 {[%emt 0:00:00]} Bd6 {[%emt 0:00:00]} 7. Bd3 {[%emt 0:00:00]} O-O {[%emt 0:00:00]} 8. Qc2 {[%emt 0:00:00]} Re8+ {[%emt 0:00:00]} 9. Ne2 {[%emt 0:00:00]} h5 {[%emt 0:00:00]} 10. O-O {[%emt 0:00:00]} Qc7 {[%emt 0:00:00]} 11. f4 {[%emt 0:00:00]} Nd7 {[%emt 0:00:00]} 12. h3 {[%emt 0:00:00]} c5 {[%emt 0:00:00]} 13. dxc5 {[%emt 0:15:56]} Nxc5 {[%emt 0:00:00]} 14. Ng3 {[%emt 0:06:27]} h4 {[%emt 0:00:00]} 15. Nf5 {[%emt 0:00:52]} Nxd3 {[%emt 0:00:00]} 16. Qxd3 {[%emt 0:00:14]} Bxf5 {[%emt 0:00:00]} 17. Qxf5 {[%emt 0:00:17]} Qc5+ {[%emt 0:00:00]} 18. Qxc5 {[%emt 0:00:24]} Bxc5+ {[%emt 0:00:01]} 19. Kh1 {[%emt 0:01:33]} Re2 {[%emt 0:03:12]} 20. b4 {[%emt 0:06:46]} Bf2 {[%emt 0:01:47]} 21. a4 {[%emt 0:04:21]} Rc8 {[%emt 0:01:13]} 22. Ba3 {[%emt 0:18:22]} Rxc3 {[%emt 0:01:48]} 23. b5 {[%emt 0:05:59]} Bb6 {[%emt 0:06:17]} 24. a5 {[%emt 0:15:24]} Bxa5 {[%emt 0:02:05]} 25. Bb2 {[%emt 0:03:48]} Rxb2 {[%emt 0:00:07]} 26. Rxa5 {[%emt 0:00:07]} Rcc2 {[%emt 0:00:13]} 27. Rg1 {[%emt 0:00:39]} Rf2 {[%emt 0:00:40]} 28. Rxa7 {[%emt 0:00:45]} Rxb5 {[%emt 0:00:06]} 29. Ra4 {[%emt 0:01:01]} Rbb2 {[%emt 0:00:15]} 30. Ra8+ {[%emt 0:03:17]} Kh7 {[%emt 0:00:07]} 31. Rf8 {[%emt 0:01:07]} Rxf4 {[%emt 0:01:07]} 32. Rxf7 {[%emt 0:00:34]} Rff2 {[%emt 0:00:08]} 33. Rd7 {[%emt 0:01:23]} b5 {[%emt 0:00:43]} 34. Rd4 {[%emt 0:00:33]} g5 {[%emt 0:00:10]} 35. Rd7+ {[%emt 0:01:03]} Kg6 {[%emt 0:00:05]} 36. Rb7 {[%emt 0:00:26]} b4 {[%emt 0:02:05]} 37. Rb5 {[%emt 0:00:46]} b3 {[%emt 0:01:10]} 38. Kh2 {[%emt 0:01:19]} Rfe2 {[%emt 0:02:15]} 39. Kh1 {[%emt 0:00:31]} Kf7 {[%emt 0:01:26]} 40. Rf1 {[%emt 0:01:01]} Re6 {[%emt 0:12:57]} 41. Rb7+ {[%emt 0:00:00]} Kg6 {[%emt 0:00:00]} 42. Rb5 {[%emt 0:00:00]} Rd6 {[%emt 0:00:00]} 43. Kh2 {[%emt 0:00:00]} Rdd2 {[%emt 0:00:00]} 44. Kh1 {[%emt 0:00:00]} Rd4 {[%emt 0:00:00]} 45. Rb6 {[%emt 0:02:13]} Rf4 {[%emt 0:00:00]} 46. Re1 {[%emt 0:02:14]} Rff2 {[%emt 0:00:00]} 47. Rg1 {[%emt 0:02:18]} Kf7 {[%emt 0:00:00]} 48. Rb5 {[%emt 0:05:42]} g4 {[%emt 0:00:27]} 49. hxg4 {[%emt 0:01:59]} h3 {[%emt 0:00:12]} 50. Kh2 {[%emt 0:05:33]} Rxg2+ {[%emt 0:00:28]} 51. Rxg2 {[%emt 0:00:15]} hxg2 {[%emt 0:00:10]} 52. Kg1 {[%emt 0:00:40]} Ke6 {[%emt 0:01:37]} 53. Rb8 {[%emt 0:00:36]} Ke5 {[%emt 0:00:35]} 54. Re8+ {[%emt 0:00:28]} Kf4 {[%emt 0:00:10]} 55. Rb8 {[%emt 0:00:29]} Kg3 {[%emt 0:00:11]} 56. Rxb3+ {[%emt 0:00:26]} Rxb3 {[%emt 0:00:05]} 57. g5 {[%emt 0:00:04]} Rb1# {[%emt 0:00:03]} 0-1

[Event "GER-ch Youth-U12 2024"]
[Site "Willingen"]
[Date "2024.05.20"]
[Round "3"]
[White "Leonhardt, Max"]
[Black "Rinke, Alexander"]
[Result "1-0"]
[ECO "E06"]
[WhiteElo "1691"]
[BlackElo "1596"]
[Annotator "NA"]
[PlyCount "137"]
[EventDate "2022.06.05"]
[EventType "swiss"]
[EventRounds "9"]
[EventCountry "GER"]
[SourceTitle "playchess.com"]
[Source "ChessBase"]
[SourceQuality "1"]
[TimeControl "40/4500+30:900+30"]

1. Nf3 {[%emt 0:00:00]} d5 {[%emt 0:00:00]} 2. g3 {[%emt 0:00:00]} Nf6 {[%emt 0:00:00]} 3. Bg2 {[%emt 0:00:00]} e6 {[%emt 0:00:00]} 4. d4 {[%emt 0:00:00]} Be7 {[%emt 0:00:00]} 5. O-O {[%emt 0:00:00]} O-O {[%emt 0:00:00]} 6. c4 {[%emt 0:00:00]} Nc6 {[%emt 0:00:00]} 7. Bf4 {[%emt 0:00:00]} dxc4 {[%emt 0:01:07]} 8. Nc3 {[%emt 0:00:00]} Nd5 {[%emt 0:04:35]} 9. Qd2 {[%emt 0:00:00]} Nxf4 {[%emt 0:06:05]} 10. Qxf4 {[%emt 0:00:00]} Nb4 {[%emt 0:05:00]} 11. a3 {[%emt 0:00:00]} Nd5 {[%emt 0:03:34]} 12. Qd2 {[%emt 0:00:00]} c6 {[%emt 0:09:17]} 13. Ne5 {[%emt 0:01:13]} Nb6 {[%emt 0:02:21]} 14. Rac1 {[%emt 0:04:00]} Bf6 {[%emt 0:04:15]} 15. Nf3 {[%emt 0:01:44]} e5 {[%emt 0:03:54]} 16. Ne4 {[%emt 0:03:24]} exd4 {[%emt 0:03:15]} 17. Nxf6+ {[%emt 0:00:23]} Qxf6 {[%emt 0:00:08]} 18. Qxd4 {[%emt 0:00:10]} Qxd4 {[%emt 0:01:00]} 19. Nxd4 {[%emt 0:00:07]} Re8 {[%emt 0:02:15]} 20. Rfd1 {[%emt 0:01:22]} Be6 {[%emt 0:01:47]} 21. Nxe6 {[%emt 0:01:23]} Rxe6 {[%emt 0:00:09]} 22. e3 {[%emt 0:00:15]} Kf8 {[%emt 0:03:01]} 23. Bf1 {[%emt 0:00:18]} Re4 {[%emt 0:00:14]} 24. Bg2 {[%emt 0:00:36]} Re5 {[%emt 0:01:04]} 25. Rd4 {[%emt 0:00:29]} Rae8 {[%emt 0:03:52]} 26. Bf1 {[%emt 0:02:06]} Re4 {[%emt 0:03:17]} 27. Rxe4 {[%emt 0:00:19]} Rxe4 {[%emt 0:00:09]} 28. Bg2 {[%emt 0:00:29]} Re5 {[%emt 0:04:03]} 29. Kf1 {[%emt 0:00:21]} Ke7 {[%emt 0:01:29]} 30. Ke2 {[%emt 0:00:17]} a6 {[%emt 0:01:29]} 31. Kd2 {[%emt 0:00:44]} Kd6 {[%emt 0:01:00]} 32. Bf1 {[%emt 0:00:22]} Kc5 {[%emt 0:09:36]} 33. b3 {[%emt 0:02:16]} Rf5 {[%emt 0:03:33]} 34. f4 {[%emt 0:00:42]} Rh5 {[%emt 0:00:52]} 35. h4 {[%emt 0:00:11]} Rh6 {[%emt 0:01:15]} 36. Bxc4 {[%emt 0:00:32]} Nxc4+ {[%emt 0:00:07]} 37. Rxc4+ {[%emt 0:00:08]} Kd6 {[%emt 0:00:11]} 38. f5 {[%emt 0:01:00]} Ke5 {[%emt 0:02:42]} 39. Rg4 {[%emt 0:08:23]} Rd6+ {[%emt 0:01:33]} 40. Ke2 {[%emt 0:01:19]} g6 {[%emt 0:00:43]} 41. fxg6 {[%emt 0:15:21]} fxg6 {[%emt 0:17:25]} 42. Rf4 {[%emt 0:00:40]} Rf6 {[%emt 0:00:16]} 43. Rd4 {[%emt 0:10:53]} Rd6 {[%emt 0:00:48]} 44. Kd3 {[%emt 0:04:49]} Rxd4+ {[%emt 0:01:08]} 45. exd4+ {[%emt 0:00:07]} Kf5 {[%emt 0:00:27]} 46. Kc4 {[%emt 0:00:10]} Ke4 {[%emt 0:00:00]} 47. b4 {[%emt 0:00:00]} b6 {[%emt 0:00:00]} 48. a4 {[%emt 0:00:00]} Kf3 {[%emt 0:00:00]} 49. a5 {[%emt 0:00:00]} bxa5 {[%emt 0:00:00]} 50. bxa5 {[%emt 0:00:00]} Kxg3 {[%emt 0:00:00]} 51. Kc5 {[%emt 0:00:00]} Kxh4 {[%emt 0:00:00]} 52. Kxc6 {[%emt 0:00:00]} g5 {[%emt 0:00:00]} 53. d5 {[%emt 0:00:00]} g4 {[%emt 0:00:00]} 54. d6 {[%emt 0:00:00]} g3 {[%emt 0:00:00]} 55. d7 {[%emt 0:00:00]} g2 {[%emt 0:00:00]} 56. d8=Q+ {[%emt 0:00:00]} Kh3 {[%emt 0:00:00]} 57. Qg8 {[%emt 0:00:00]} h5 {[%emt 0:00:00]} 58. Qg5 {[%emt 0:00:00]} h4 {[%emt 0:00:00]} 59. Kb7 {[%emt 0:00:00]} g1=Q {[%emt 0:00:00]} 60. Qf5+ {[%emt 0:00:00]} Qg4 {[%emt 0:00:00]} 61. Qd3+ {[%emt 0:00:00]} Qg3 {[%emt 0:00:00]} 62. Qxa6 {[%emt 0:00:00]} Qf3+ {[%emt 0:00:00]} 63. Ka7 {[%emt 0:00:00]} Qf7+ {[%emt 0:00:00]} 64. Kb8 {[%emt 0:00:00]} Qe8+ {[%emt 0:00:00]} 65. Qc8+ {[%emt 0:00:00]} Qxc8+ {[%emt 0:00:00]} 66. Kxc8 {[%emt 0:00:00]} Kg3 {[%emt 0:00:00]} 67. a6 {[%emt 0:00:00]} h3 {[%emt 0:00:00]} 68. a7 {[%emt 0:00:00]} h2 {[%emt 0:00:00]} 69. a8=Q {[%emt 0:00:13]} 1-0